Cogmind - Beta 15 @@@ ROGUE MODE // 2025.06.12 @ 13:53:27 // AFD2020/Player2 Player: Minty Result: Core destroyed Performance ------------- Evolutions (4) 2000 Regions Visited (4) 800 Robots Destroyed (36) 180 Value Destroyed (1224) 1224 Prototype IDs (14) 280 Alien Tech Used (0) 0 Bonus (893) 893 TOTAL SCORE: 5377 Bonus ------- High Alert Combat Kills 142 Follower Combat Kills 674 Registered with UFD 300 Met Optimus in HQ 500 Friendly Fire -723 Cogmind --------- Core Integrity 0/850 Matter 152/300 Energy 76/100 System Corruption 3% Temperature Cool (0) Movement Core (50) Location -6/Factory Parts ------- > --- POWER (2) -------- (None) > --- PROPULSION (4) --- (None) > --- UTILITY (6) ------ (None) > --- WEAPON (3) ------- (None) > --- INVENTORY (5) ---- Experimental Terrain Scanner Vortex Trap Vortex Trap Vortex Trap Botcube Peak State ------------ > --- POWER ------------ Light Angular Momentum Engine Fission Core > --- PROPULSION ------- Wheel Compact Wheel Compact Wheel Subdweller Monowheel > --- UTILITY ---------- Advanced Heat Sink High-capacity Storage Unit Makeshift Kinetic Plating Makeshift Thermal Plating Graphene Brace Improved Hardlight Generator > --- WEAPON ----------- Gatling Laser Grenade Launcher Mining Claw > --- INVENTORY -------- Advanced Heat Sink Large Storage Unit Terrain Scanner Experimental Terrain Scanner Weapon Cycler Improved Hardlight Generator Improved Hardlight Generator Improved Shield Generator Cobbler Unit CPS Tube CPS Tube CPS Tube CPS Tube CPS Tube Vortex Trap Vortex Trap Vortex Trap Botcube [Rating: 53] Favorites ----------- Power Improved Ion Engine Engine Improved Ion Engine Power Core Fission Core Propulsion Wheel Treads Spiked Treads Leg Aluminum Leg Wheel Wheel Flight Unit Surge Thruster Utility Terrain Scanner Device Terrain Scanner Storage Small Storage Unit Processor Visual Processing Unit Hackware Hacking Suite Protection Makeshift Kinetic Plating Weapon Mining Claw Energy Gun Gatling Laser Ballistic Gun Battle Rifle Launcher Grenade Launcher Special Weapon CPS Tube Slashing Weapon Mining Claw Build | -11 -10 -10 -8 -6 ------- Run | Yrd Mat Sub Scr Fac Slots Evolved 8 | . . . . 8 Power 1 | . . . . 1 Propulsion 2 | . . . . 2 Utility 4 | . . . . 4 Weapon 1 | . . . . 1 Parts Attached 39 | . 7 5 4 23 Power 4 | . . 1 . 3 Engine 3 | . . 1 . 2 Core 1 | . . . . 1 Reactor . | . . . . . Propulsion 10 | . 2 2 . 6 Treads 1 | . . 1 . . Leg . | . . . . . Wheel 8 | . 2 1 . 5 Hover . | . . . . . Flight 1 | . . . . 1 Utility 18 | . 3 1 4 10 Device 8 | . 1 . 2 5 Storage 3 | . . 1 1 1 Processor 1 | . . . . 1 Hackware 1 | . . . 1 . Protection 5 | . 2 . . 3 Artifact . | . . . . . Weapon 7 | . 2 1 . 4 Energy Gun 1 | . . . . 1 Energy Cannon . | . . . . . Ballistic Gun 1 | . . . . 1 Ballistic Cannon . | . . . . . Launcher 1 | . . 1 . . Special Weapon 2 | . . . . 2 Impact Weapon . | . . . . . Slashing Weapon 2 | . 2 . . . Piercing Weapon . | . . . . . Special Melee Weapon . | . . . . . Unidentified Prototypes . | . . . . . Parts Lost 12 | . . 1 . 11 Power 4 | . . 1 . 3 Propulsion 5 | . . . . 5 Utility 1 | . . . . 1 Weapon 2 | . . . . 2 Highest Loss Streak 4 | . . 1 . 4 To Critical Strikes . | . . . . . Average Backups 8 | . 4 6 8 11 Power . | . . . . . Propulsion . | . . . . . Utility 4 | . 2 4 3 5 Weapon 1 | . . 1 1 1 Tool/Special . | . . . . . Unused Backups 28 | . 12 3 1 12 Power 4 | . 2 1 . 1 Propulsion 8 | . 6 . . 2 Utility 6 | . 1 . 1 4 Weapon 6 | . 3 1 . 2 Tool/Special 4 | . . 1 . 3 Average Slot Usage (%) 96 | . 97 99 99 86 Engine 12 | . 14 13 14 8 Leg 3 | . 27 . . . Wheel 22 | . . 27 28 22 Device 10 | . 9 14 7 10 Storage 10 | . 1 13 14 6 Hackware 3 | . . . 6 3 Protection 5 | . 16 . . 10 Slashing Weapon 23 | . 25 27 28 9 Peak Build Rating 53 | . 7 10 18 53 Average Rating 16 | . 6 8 12 35 On Entrance 8 | 6 6 7 9 14 Naked Turns 1 | . . . . 1 Heaviest Build 89 | 13 15 17 32 89 Greatest Support 62 | 20 20 20 20 62 Greatest Overweight (x) 3 | . 1 1 1 3 Average Overweight (x) . | . . . . . Largest Inventory Capacity 20 | . 8 8 15 20 Average Capacity 11 | . 5 7 12 18 Most Carried 20 | . 6 8 15 20 Average Carried 11 | . 4 7 11 16 Final Capacity 15 | 8 5 8 15 5 Final Carried 15 | 6 5 8 15 5 Class Distribution -------------------- 77% | Mutant 22% | Scavenger-Mutant Dominant Class ---------------- Mutant | -10/Materials Mutant | -10/Subcaves Mutant | -8/Scraptown Scavenger-Mutant | -6/Factory Resources | -11 -10 -10 -8 -6 ----------- Run | Yrd Mat Sub Scr Fac Matter Collected 927 | 200 67 168 . 492 Remotely . | . . . . . Salvage Created 1400 | . 337 423 . 640 Parts 84 | . 21 38 . 25 Haulers Intercepted 1 | . 1 . . . Recyclers Shooed . | . . . . . Parts Field Recycled . | . . . . . Retrieved Matter . | . . . . . Parts Self-Destructed 11 | . . 11 . . Prevented . | . . . . . Kills | -11 -10 -10 -8 -6 ------- Run | Yrd Mat Sub Scr Fac Combat Hostiles Destroyed 22 | . . 9 . 13 Melee 5 | . . 2 . 3 Guns 2 | . . . . 2 AOE 15 | . . 7 . 8 Classes Destroyed 12 | . 5 3 . 4 Worker 3 | . 2 . . 1 Builder 5 | . 2 . . 3 Tunneler 2 | . 2 . . . Hauler 1 | . 1 . . . Recycler 3 | . 2 . . 1 Grunt 8 | . . . . 8 Brawler 3 | . . . . 3 Protector 1 | . . . . 1 Sentry 1 | . . 1 . . Hunter 1 | . . . . 1 Cobbler 1 | . . 1 . . Subdweller 8 | . . 8 . . Best Kill Streak 10 | . 7 5 . 10 Combat Bots Only 5 | . . 5 . 5 Max Kills in Single Turn 3 | . 1 3 . 3 Gunslinging . | . . . . . Exploded 3 | . . 3 . 2 Melee 1 | . . 1 . 1 Uniques/NPCs Destroyed . | . . . . . Combat | -11 -10 -10 -8 -6 -------- Run | Yrd Mat Sub Scr Fac Hostile Shots Fired 160 | . 23 9 . 128 Missed 44 | . 5 4 . 35 Hits 116 | . 18 5 . 93 Melee 3 | . . . . 3 Projectile 113 | . 18 5 . 90 AOE 1 | . . . . 1 Critical Strikes 5 | . 2 1 . 2 Damage Taken 1497 | . 241 79 . 1177 Core 128 | . 43 33 . 52 Absorbed by Shields 454 | . . . . 454 Ignored by Resistances 156 | . . . . 156 Regen/Repaired (Parts) 98 | . . . 38 60 Core Remaining (%) 69 | 100 . . 38 . Volleys Fired 43 | . . 8 . 35 Largest 2 | . . 1 . 2 Hottest 110 | . . 30 . 110 Shots Fired 44 | . . 8 . 36 Gun 14 | . . . . 14 Cannon . | . . . . . Launcher 29 | . . 8 . 21 Special 1 | . . . . 1 Kinetic 4 | . . . . 4 Thermal 10 | . . . . 10 Explosive 29 | . . 8 . 21 Electromagnetic . | . . . . . Robot Hit Streak 12 | . . 6 . 12 Robot Miss Streak 4 | . . . . 4 Penetration Max . | . . . . . Secondary Targets . | . . . . . Shots Hit Robots 85 | . 21 16 . 48 Core Hits 84 | . 8 21 . 55 Critical Kills . | . . . . . Critical Parts Destroyed . | . . . . . Critical Strikes . | . . . . . Melee Attacks 100 | . 48 24 . 28 Impact . | . . . . . Slashing 100 | . 48 24 . 28 Piercing . | . . . . . Sneak Attacks 20 | . 13 3 . 4 Combat Hostiles . | . . . . . Follow-up Attacks 8 | . 5 1 . 2 Damage Inflicted 4634 | . 775 1051 . 2808 Guns 204 | . . . . 204 Cannons . | . . . . . Explosions 2741 | . . 665 . 2076 Melee 1689 | . 775 386 . 528 Ramming . | . . . . . Kinetic 25 | . . . . 25 Thermal 179 | . . . . 179 Explosive 2715 | . . 665 . 2050 Electromagnetic 26 | . . . . 26 Impact . | . . . . . Slashing 1689 | . 775 386 . 528 Piercing . | . . . . . Highest Corruption 3 | . . . . 3 Average Corruption 3 | . . . . 3 Corruption Purged . | . . . . . Corruption Blocked . | . . . . . Effects 2 | . . . . 2 Message Errors 1 | . . . . 1 Energy Discharges 1 | . . . . 1 Overload Shots . | . . . . . Overflow Damage 175 | . 59 . . 116 Projectiles . | . . . . . Explosions 86 | . . . . 86 Melee 89 | . 59 . . 30 Knockbacks . | . . . . . Impact . | . . . . . Kinetic . | . . . . . Secondary . | . . . . . Self-Inflicted Damage 198 | . . . . 198 Shots 8 | . . . . 8 Rammed . | . . . . . Targets Rammed . | . . . . . Kicked . | . . . . . Crushed . | . . . . . Highest Temperature 245 | . . . . 245 Average Temperature 70 | . . . . 70 Received Heat Transfer 504 | . 93 42 . 369 Siege Activations . | . . . . . Martial Activations . | . . . . . Shielding Activations . | . . . . . Robots Disrupted . | . . . . . Combat Hostiles . | . . . . . Robots Corrupted . | . . . . . Combat Hostiles . | . . . . . Parts Fried . | . . . . . Impact Corruptions . | . . . . . Robots Melted . | . . . . . Combat Hostiles . | . . . . . Parts Melted . | . . . . . Heat Transferred 388 | . . . . 388 Parts Sabotaged . | . . . . . Parts Stolen . | . . . . . Parts Stripped . | . . . . . Power Chain Reactions . | . . . . . Alert | -11 -10 -10 -8 -6 ------- Run | Yrd Mat Sub Scr Fac Maximum Alert Level 3 | . 1 . . 3 Low Security (%) 74 | . 97 . . 61 Level 1 7 | . 2 . . 9 Level 2 17 | . . . . 27 Level 3 1 | . . . . 2 Level 4 . | . . . . . Level 5 . | . . . . . High Security . | . . . . . Max Security . | . . . . . Peak Influence 723 | . 207 . . 723 Initial . | . . . . . Average 157 | . 92 . . 196 Influence Increases 1570 | . 320 25 . 1225 Destroy 0b10 Robot/C 700 | . 120 20 . 560 Destroy 0b10 Robot/NC 100 | . 60 . . 40 Destroy Leader 156 | . 34 . . 122 Allied During Kill 253 | . 48 5 . 200 Successful Hack 14 | . 10 . . 4 Disable Machine 195 | . 15 . . 180 Destroy Structure 92 | . 3 . . 89 Lose Combat Pursuer 60 | . 30 . . 30 Influence Decreases 865 | . 160 185 . 520 Entered New Map 77 | . . 77 . . Time Decay 475 | . 160 105 . 210 Lost Part 293 | . . 3 . 290 Lost Ally 20 | . . . . 20 Squads Dispatched 14 | . . . . 14 Investigation 3 | . . . . 3 Extermination . | . . . . . Reinforcement 7 | . . . . 7 Assault 2 | . . . . 2 Garrison 2 | . . . . 2 Intercept . | . . . . . Searches Triggered . | . . . . . Construction Impeded 2 | . . . . 2 Haulers Reinforced . | . . . . . Active Scanning Responses . | . . . . . Cargo Convoy Interrupts . | . . . . . Stealth | -11 -10 -10 -8 -6 --------- Run | Yrd Mat Sub Scr Fac Distress Signals 4 | . 3 . . 1 Communications Jammed . | . . . . . Distress Signals . | . . . . . Times Spotted 63 | . 10 12 . 41 Peak Tracking Total 12 | . 4 4 . 12 Tactical Retreats 3 | . 1 . . 2 Traps | -11 -10 -10 -8 -6 ------- Run | Yrd Mat Sub Scr Fac Traps Triggered . | . . . . . Indirectly . | . . . . . Trap Hack Attempts . | . . . . . Triggered . | . . . . . Disarmed . | . . . . . Reprogrammed . | . . . . . Reused . | . . . . . Traps Extracted . | . . . . . Installed . | . . . . . Triggered . | . . . . . Most Traps Carried 3 | . . . 3 3 Machines | -11 -10 -10 -8 -6 ---------- Run | Yrd Mat Sub Scr Fac Machines Disabled 13 | . 1 . . 12 Max in Single Turn 3 | . 1 . . 3 Garrison Access 1 | . . . . 1 Machines Repaired . | . . . . . Machines Dismantled . | . . . . . Machines Sabotaged . | . . . . . Overloaded Fab Kills . | . . . . . Hacking | -11 -10 -10 -8 -6 --------- Run | Yrd Mat Sub Scr Fac Machines Accessed 8 | . 1 1 2 4 Terminals 2 | . 1 . . 1 Fabricators . | . . . . . Repair Stations 1 | . . . . 1 Recycling Units 1 | . . . . 1 Scanalyzers . | . . . . . Garrison Access 1 | . . . . 1 Total Hacks 26 | . 6 4 7 9 Successful 20 | . 3 4 7 6 Failed 6 | . 3 . . 3 Catastrophic . | . . . . . Database Lockouts . | . . . . . Manual 14 | . 6 . . 8 Terminals 7 | . 6 . . 1 Fabricators . | . . . . . Repair Stations 1 | . . . . 1 Recycling Units 2 | . . . . 2 Scanalyzers . | . . . . . Garrison Access 5 | . . . . 5 Terminal Hacks 13 | . 1 4 7 1 Record 4 | . . 4 . . Robot Analysis 6 | . . . 6 . Prototype ID Bank 1 | . 1 . . . Open DSF 1 | . . . . 1 Proto ID Catalog 1 | . . . 1 . Fabricator Hacks . | . . . . . Repair Station Hacks . | . . . . . Recycling Unit Hacks . | . . . . . Scanalyzer . | . . . . . Garrison Access Hacks . | . . . . . Unauthorized Hacks 7 | . 2 . . 5 Terminals 2 | . 2 . . . Botnet 1 | . 1 . . . Skim 1 | . 1 . . . Fabricators . | . . . . . Repair Stations 1 | . . . . 1 Patch 1 | . . . . 1 Recycling Units 1 | . . . . 1 Fedlink 1 | . . . . 1 Scanalyzers . | . . . . . Garrison Access 3 | . . . . 3 Broadcast 1 | . . . . 1 Reprogram 1 | . . . . 1 Intercept 1 | . . . . 1 Data Cores Recovered . | . . . . . Used . | . . . . . Hacking Detections 2 | . 1 . . 1 Full Trace Events . | . . . . . Feedback Events . | . . . . . Feedback Blocked . | . . . . . Robot Schematics Acquired . | . . . . . Robots Built . | . . . . . Authchips . | . . . . . Time . | . . . . . Total Robot Build Rating . | . . . . . Part Schematics Acquired . | . . . . . Parts Built . | . . . . . Authchips . | . . . . . Time . | . . . . . Total Part Build Rating . | . . . . . Parts Repaired . | . . . . . Time . | . . . . . Parts Recycled . | . . . . . Recycled Matter . | . . . . . Retrieved Matter . | . . . . . Retrieved Components . | . . . . . Parts Scanalyzed . | . . . . . Part Schematics Acquired . | . . . . . Parts Damaged . | . . . . . Bothacking | -11 -10 -10 -8 -6 ------------ Run | Yrd Mat Sub Scr Fac Used RIF Installer . | . . . . . Robots Hacked . | . . . . . Non-combat . | . . . . . Combat . | . . . . . Robot Hacks Applied . | . . . . . Relay Couplers Released 3 | . . . . 3 Machine Destruction 3 | . . . . 3 Fabnet Peak Effective % . | . . . . . Robots Rewired . | . . . . . Allies Hacked . | . . . . . Hacks Repelled . | . . . . . Allies | -11 -10 -10 -8 -6 -------- Run | Yrd Mat Sub Scr Fac Total Allies 4 | . 1 . . 3 Largest Group 4 | . 1 1 1 4 Highest-Rated Group 169 | . 57 58 58 169 Highest-Rated Ally 82 | . 57 58 58 82 Total Orders . | . . . . . Ally Attacks 123 | . 22 2 . 99 Total Damage 3106 | . 383 46 . 2677 Kills 29 | . 9 . . 20 Allies Corrupted . | . . . . . Allies Melted . | . . . . . Intel | -11 -10 -10 -8 -6 ------- Run | Yrd Mat Sub Scr Fac Active Infowar (turns) 1904 | . 241 573 568 522 Optics 368 | . . . . 368 Terrain 1582 | . 241 573 568 200 Robot Analysis Total 6 | . . . 6 . Derelict Logs Recovered . | . . . . . Drone Launches . | . . . . . Drone Recoveries . | . . . . . Exploration | -11 -10 -10 -8 -6 ------------- Run | Yrd Mat Sub Scr Fac Turns Passed 2595 | . 364 573 1033 625 Spaces Moved 2128 | 1 183 588 1026 330 Core 2 | . . . . 2 Treads 1 | . . 1 . . Legs 177 | 1 176 . . . Wheels 1948 | . 7 587 1026 328 Hover . | . . . . . Flight . | . . . . . Fastest Speed 50 | 120 80 80 80 50 Average Speed 91 | 120 118 80 89 104 Slowest Speed 160 | 120 120 160 95 135 Overloaded Moves . | . . . . . Propulsion Burnouts . | . . . . . Robots Hopped . | . . . . . Potential Cave-ins 1 | . . 1 . . Cave-ins Triggered . | . . . . . Exploration Rate (%) 26 | 1 28 36 57 9 Regions Visited 4 Branch Regions 2 Pre-discovered Areas 1 | . . 1 . . Known Exits Taken . | . . . . . Unknown Exits Taken 4 | 1 1 1 1 . Scrap Searched 8 | . . 7 1 . Spaces Dug 3 | . 3 . . . Terrain Destroyed 126 | . 3 24 . 99 Melee 3 | . 3 . . . Projectile . | . . . . . AOE 123 | . . 24 . 99 Terrain Rammed . | . . . . . Walls Destroyed . | . . . . . Machines Disabled . | . . . . . Actions | -11 -10 -10 -8 -6 --------- Run | Yrd Mat Sub Scr Fac Total 2552 | . 248 641 1141 522 Wait 168 | . 2 7 97 62 Move 2124 | . 182 587 1025 330 Hop . | . . . . . Pick Up 29 | . 5 5 10 9 Fast Attach 22 | . 6 4 1 11 Attach 12 | . . 1 . 11 Detach 8 | . 1 . 1 6 Swap 18 | . 1 4 3 10 Drop 44 | . 11 7 4 22 Fire 43 | . . 8 . 35 Melee 84 | . 40 18 . 26 Ram . | . . . . . Kick . | . . . . . Crush . | . . . . . Escape Stasis . | . . . . . Rewire . | . . . . . Trap . | . . . . . Miscellaneous . | . . . . . Route ------- -11/Scrapyard -10/Materials -10/Subcaves (discovered 3 exits: [*Mat x2] / *Scr) -8/Scraptown -6/Factory History --------- Turn | Location | Event 1 | -11/Scrapyard | Discovered new exit (range 0) 1 | -11/Scrapyard | Entered Materials 312 | -10/Materials | Build established: Mutant 332 | -10/Materials | Discovered new exit (range 6) 365 | -10/Materials | Entered Subcaves 366 | -10/Subcaves | Approached by a straggling Scientist 431 | -10/Subcaves | Ambushed by swarm of Subdwellers 471 | -10/Subcaves | Visited Clippyterm 474 | -10/Subcaves | Learned location of Extension (-4) 474 | -10/Subcaves | Learned Factory fabricator intel 505 | -10/Subcaves | Core integrity fell below 50% 647 | -10/Subcaves | A swath of the cavern ceiling suddenly collapsed 662 | -10/Subcaves | Discovered new exit (range 8) 824 | -10/Subcaves | Discovered new exit (range 11) 879 | -10/Subcaves | Shifting Twisted Machinery released Flamer 908 | -10/Subcaves | Shifting Twisted Machinery released Sub. Shrapnel Launcher 919 | -10/Subcaves | Scientist uncovered a shortcut to Scraptown 938 | -10/Subcaves | Entered Scraptown 1060 | -8/Scraptown | Visited UFD Registry 1060 | -8/Scraptown | Registered with UFD as "Fluxtorch" 1092 | -8/Scraptown | Visited Chapter 10 1117 | -8/Scraptown | Visited Botcube Research 1121 | -8/Scraptown | Found Botcube 1147 | -8/Scraptown | Visited Infowarlord's Domain 1168 | -8/Scraptown | Found Exp. Terrain Scanner 1217 | -8/Scraptown | Visited Analyses Database 1276 | -8/Scraptown | Delivered Scrap Shield to a Scientist 1387 | -8/Scraptown | Visited Curators Association 1402 | -8/Scraptown | Visited Science Guys 1493 | -8/Scraptown | Visited Junk Repository 1647 | -8/Scraptown | Visited TADAMA 1674 | -8/Scraptown | Visited CR-KLE's Repair Center 1680 | -8/Scraptown | CR-KLE repaired 3 parts 1763 | -8/Scraptown | Visited IN-MT5's Study 1769 | -8/Scraptown | Visited Fellowship of the Rings 1781 | -8/Scraptown | Visited The Evicted 1869 | -8/Scraptown | Met Optimus 1869 | -8/Scraptown | Accepted into 0bPrime 1917 | -8/Scraptown | Discovered new exit (range 3) 1971 | -8/Scraptown | Entered Factory 1971 | -6/Factory | Evolved 8 slots: Power x1, Propulsion x2, Utility x4, Weapon x1 1972 | -6/Factory | Loaded intel: 6 fabricator locations 2245 | -6/Factory | Loaded intel: 8 recycling unit locations 2303 | -6/Factory | Garrison activated, responded to threat 2308 | -6/Factory | Build established: Scavenger-Mutant 2377 | -6/Factory | Lost 3 allies 2403 | -6/Factory | Lost 4 parts (1p2n1w) 2563 | -6/Factory | Lost 3 parts (1n1u1w) 2580 | -6/Factory | Core integrity fell below 50% 2589 | -6/Factory | Core integrity fell below 20% 2595 | -6/Factory | Released all parts (7) 2596 | -6/Factory | Core destroyed Last Messages --------------- 02591_ Slug penetrates Player 2. 02591_ Dropped CPS Tube. 02591_ U-05 Engineer lays Concrete. 02592_ Dropped CPS Tube. 02592_ U-05 Engineer lays Concrete. 02592_ R-10 Processor collects Corrupted Flexi-carbon Leg. 02593_ Dropped Imp. Hardlight Generator. 02593_ Dropped Grenade Launcher. 02593_ U-05 Engineer lays Concrete. 02594_ Dropped Lrg. Storage Unit. 02594_ Dropped Hcp. Storage Unit. 02594_ U-05 Engineer lays Concrete. 02595_ Released Imp. Hardlight Generator. 02595_ Released Mak. Kinetic Plating. 02595_ Released Com. Wheel. 02595_ Released Sub. Monowheel. 02595_ Released Adv. Heat Sink. 02595_ Released Graphene Brace. 02595_ Released Terrain Scanner. 02596_ Slug penetrates Player 2. Map ----- +----------------------------------------------------+ | ?????????????????????????????????????????????????? | | ?????????????????????????????????????????????????? | | ?????????????????????????????????????????????????? | | ??????? #????????????????????????????????????????? | | ?????? #????????????????????????????????????????? | | "????? #????????????????????????????????????????? | | " ??? ! #???????????????"????????????????????????? | | " """ #???????????????"????????????????????????? | | #?????????????? ""???????????????????????? | | " """ #?????????????? ""???????????????????????? | | " """ #?????????????? ??????????????????????? | | " """ #????????????? "" ??????????????????????? | | #????????????# "" ?"????????????????????? | | ????????????## """ ""???????????????????? | | ? ??????????#### # """ """??????????????????? | | ###+############# ####% """ """ """??????????????? | | % % ??????????????? | | ! ^ ?????????????? | | """ " h[ ?????????????? | | """ !gb u ?????????????? | | """ u ?????????????? | | # #####@ ! #u###### ?????????????? | | # """ T#?## % #?????????????????? | | # """ #?# #?????????????????? | | # """ ##?# ! #?????????????????? | | # #??## !@!! #?????????????????? | | # """ """ #??# !=!!] #?????????????????? | | #^ """ """ #??# |/!!| #?????????????????? | | # """ """ #??# ! =|!|! #?????????????????? | | # ???# !|=! #?????????????????? | | """ """ ???# R #?????????????????? | | ! """ """ ##### #? ???????????????? | | """ """ " ! #?????????????????? | | ##### " ! #?????????????????? | | """T""" #????###= ###?????????????????? | | ####### #+###??????### ####??????????????????? | | ????# ??????????????? ?????????????????????? | | ?????????????????????? ?????????????????????? | | ??????????????????????" """ ?????????????????????? | | ?????????????????????"" """ ?????????????????????? | | ??????????????????????" ??? ????????????????????? | | ?????????????????????? ??? ?????????????????????? | | ?????????????????????????????????????????????????? | | ?????????????????????????????????????????????????? | | ?????????????????????????????????????????????????? | | ?????????????????????????????????????????????????? | | ?????????????????????????????????????????????????? | | ?????????????????????????????????????????????????? | | ?????????????????????????????????????????????????? | | ?????????????????????????????????????????????????? | +----------------------------------------------------+ Best States ------------- Heat Dissipation 56 Energy Generation 31 Energy Capacity 360 Matter Stores 300 Matter Capacity 300 Sight Range 18 Terrain Scan Range 30 Terrain Scan Density 10 Armor Coverage 350 Resistance: KI 10 Resistance: TH 10 Evasion (%) 55 Recoil Reduction 1 Offensive Hacking 10 Item Schematics ----------------- None Robot Schematics ------------------ None Fabricated ------------ Nothing Repaired ---------- Nothing Alien Tech Used ----------------- None Achievements -------------- None Challenges ------------ None Player 2 | -11 -10 -10 -8 -6 ---------- Run | Yrd Mat Sub Scr Fac Slots Evolved 8 | . . . 8 . Power 1 | . . . 1 . Propulsion 1 | . . . 1 . Utility 4 | . . . 4 . Weapon 2 | . . . 2 . Parts Attached 25 | . 10 1 . 14 Parts Lost 18 | . . . . 18 Damage Taken 2400 | . 39 96 . 2265 Core 878 | . 29 48 . 801 Player 2/Cogmind (%) 87 | . 40 59 . 93 Absorbed by Shields 462 | . . . . 462 Damage Inflicted 2570 | . 383 46 . 2141 Player 2/Cogmind (%) 35 | . 33 4 . 43 Combat Hostiles Destroyed 19 | . 6 . . 13 Player 2/Cogmind (%) 46 | . 100 . . 50 Game ------ Seed TerrainMomentumMatrix Manual? 0 Play Time 00:21:20 Cumulative 1104.6 hours Start 2025.06.12 @ 13:35:49 End 2025.06.12 @ 13:53:27 Sessions 1 Manual Loads 0 Difficulty Rogue Special Mode AFD2020/Player2 Game No. 1359 Rogue 1075 Adventurer 124 Explorer 160 Win Type - Total 50 Types 36/0/8/4/1/0/0/1/0/0 Lore% 92 Gallery% 87 Achievement% 81 Wizard Run 0 Options --------- Layout 0 ASCII 0 Keyboard 1 Movement Numpad Keybinds 0 Fullscreen 2 Font 18/X11 Map View 76x50 Zoom Use 0% Tactical HUD 1 Map Filters NONE Filters NONE Steam 1 RUN: 86d4e6e4-ac79-47be-8999-044608b4e7e3